[Event "Late-Titled-Tuesday-Blitz-February-06-2024"]
[Site "Chess.com"]
[Date "2024.02.06"]
[Round "11"]
[White "Witik"]
[Black "Zavgorodniy_Sergiy"]
[Result "1-0"]
[WhiteElo "2759"]
[BlackElo "2593"]
[TimeControl "180+1"]
[EndTime "16:04:34 PST"]
[Termination "Witik won by resignation"]

1. d4 {[%clk 0:02:59.4]} 1... d5 {[%clk 0:02:59.6]} 2. c4 {[%clk 0:02:59.7]}
2... dxc4 {[%clk 0:02:59.3]} 3. Nf3 {[%clk 0:02:59.7]} 3... Nf6 {[%clk
0:02:57.4]} 4. e3 {[%clk 0:03:00.1]} 4... e6 {[%clk 0:02:57.3]} 5. Bxc4 {[%clk
0:03:00.2]} 5... a6 {[%clk 0:02:57.8]} 6. O-O {[%clk 0:02:59]} 6... b5 {[%clk
0:02:58.1]} 7. Bd3 {[%clk 0:02:55.8]} 7... Bb7 {[%clk 0:02:58.3]} 8. Qe2 {[%clk
0:02:55.3]} 8... Nbd7 {[%clk 0:02:55.8]} 9. a4 {[%clk 0:02:54.6]} 9... b4 {[%clk
0:02:55.8]} 10. e4 {[%clk 0:02:45.3]} 10... Be7 {[%clk 0:02:55.6]} 11. Rd1
{[%clk 0:02:26.3]} 11... O-O {[%clk 0:02:53.9]} 12. b3 {[%clk 0:02:20.4]} 12...
c5 {[%clk 0:02:52.6]} 13. Bb2 {[%clk 0:02:18.2]} 13... cxd4 {[%clk 0:02:50.5]}
14. Nxd4 {[%clk 0:02:12.1]} 14... Nc5 {[%clk 0:02:45.2]} 15. Bc4 {[%clk
0:02:12]} 15... Qc7 {[%clk 0:02:35.9]} 16. f3 {[%clk 0:02:08.3]} 16... Rfd8
{[%clk 0:02:29.1]} 17. Nd2 {[%clk 0:02:03.5]} 17... Bd6 {[%clk 0:02:27.7]} 18.
Nf1 {[%clk 0:01:50.2]} 18... Rd7 {[%clk 0:02:21.7]} 19. e5 {[%clk 0:01:09.6]}
19... Bxe5 {[%clk 0:02:20.5]} 20. Nb5 {[%clk 0:01:08.1]} 20... Bxh2+ {[%clk
0:02:07.1]} 21. Nxh2 {[%clk 0:01:08.5]} 21... axb5 {[%clk 0:02:02.2]} 22. axb5
{[%clk 0:00:57.6]} 22... Rxa1 {[%clk 0:01:56.3]} 23. Rxa1 {[%clk 0:00:57.3]}
23... Nd5 {[%clk 0:01:51.2]} 24. Ng4 {[%clk 0:00:55.1]} 24... Qg3 {[%clk
0:01:43.9]} 25. Qe5 {[%clk 0:00:49]} 25... Qxe5 {[%clk 0:01:43.2]} 26. Nxe5
{[%clk 0:00:49.6]} 26... Rd8 {[%clk 0:01:43.7]} 27. Bd4 {[%clk 0:00:41.3]} 27...
Nd7 {[%clk 0:01:38]} 28. Ra7 {[%clk 0:00:41]} 28... Nxe5 {[%clk 0:01:32.6]} 29.
Bxe5 {[%clk 0:00:36.1]} 29... Ba8 {[%clk 0:01:26.7]} 30. b6 {[%clk 0:00:32]}
30... f6 {[%clk 0:00:55.9]} 31. Rxa8 {[%clk 0:00:19.2]} 31... Rxa8 {[%clk
0:00:53.2]} 32. b7 {[%clk 0:00:19.6]} 32... Re8 {[%clk 0:00:25.1]} 33. Bxd5
{[%clk 0:00:14.3]} 33... fxe5 {[%clk 0:00:23.1]} 34. Bxe6+ {[%clk 0:00:14.5]}
34... Rxe6 {[%clk 0:00:13.9]} 35. b8=Q+ {[%clk 0:00:14.6]} 35... Kf7 {[%clk
0:00:14.5]} 36. Qxb4 {[%clk 0:00:15.3]} 1-0

[Event "Late-Titled-Tuesday-Blitz-February-06-2024"]
[Site "Chess.com"]
[Date "2024.02.06"]
[Round "11"]
[White "rionelG"]
[Black "PNEPaul"]
[Result "0-1"]
[WhiteElo "2196"]
[BlackElo "1900"]
[TimeControl "180+1"]
[EndTime "16:04:34 PST"]
[Termination "PNEPaul won by checkmate"]

1. e4 {[%clk 0:03:00.9]} 1... e5 {[%clk 0:02:49.3]} 2. Nf3 {[%clk 0:03:00.4]}
2... Nc6 {[%clk 0:02:48]} 3. Bb5 {[%clk 0:03:00.9]} 3... f5 {[%clk 0:02:47.3]}
4. Nc3 {[%clk 0:02:59.4]} 4... Nf6 {[%clk 0:02:45.9]} 5. d3 {[%clk 0:02:50.6]}
5... Be7 {[%clk 0:02:45.6]} 6. a4 {[%clk 0:02:47.2]} 6... O-O {[%clk 0:02:44.8]}
7. Bc4+ {[%clk 0:02:47.2]} 7... Kh8 {[%clk 0:02:43.9]} 8. Ng5 {[%clk 0:02:46.1]}
8... Qe8 {[%clk 0:02:43.3]} 9. exf5 {[%clk 0:02:41.4]} 9... h6 {[%clk 0:02:38]}
10. h4 {[%clk 0:02:39.7]} 10... d6 {[%clk 0:02:36.4]} 11. Be6 {[%clk 0:02:32.9]}
11... Nd4 {[%clk 0:02:29.7]} 12. Nd5 {[%clk 0:02:11.4]} 12... Nxd5 {[%clk
0:02:21.7]} 13. Bxd5 {[%clk 0:02:10.2]} 13... c6 {[%clk 0:02:03.6]} 14. Ba2
{[%clk 0:02:03.1]} 14... Nxf5 {[%clk 0:01:55.2]} 15. g4 {[%clk 0:01:47.8]} 15...
Nd4 {[%clk 0:01:35.8]} 16. c3 {[%clk 0:00:32.8]} 16... Bxg5 {[%clk 0:01:28.5]}
17. hxg5 {[%clk 0:00:32.6]} 17... Nf3+ {[%clk 0:01:26.1]} 18. Kf1 {[%clk
0:00:33]} 18... Qg6 {[%clk 0:00:58.7]} 19. gxh6 {[%clk 0:00:30.7]} 19... Bxg4
{[%clk 0:00:49.3]} 20. hxg7+ {[%clk 0:00:29.9]} 20... Kxg7 {[%clk 0:00:49]} 21.
Bh6+ {[%clk 0:00:17.2]} 21... Qxh6 {[%clk 0:00:43.3]} 22. Rxh6 {[%clk
0:00:16.3]} 22... Kxh6 {[%clk 0:00:43.1]} 23. Qc1+ {[%clk 0:00:15.9]} 23... Rf4
{[%clk 0:00:40.7]} 24. Qe3 {[%clk 0:00:16.2]} 24... Kg5 {[%clk 0:00:38.5]} 25.
Kg2 {[%clk 0:00:12.1]} 25... Nh4+ {[%clk 0:00:35.1]} 26. Kg3 {[%clk 0:00:10.7]}
26... Nf5+ {[%clk 0:00:31.8]} 27. Kg2 {[%clk 0:00:09.1]} 27... Nxe3+ {[%clk
0:00:31]} 28. fxe3 {[%clk 0:00:10]} 28... Rf3 {[%clk 0:00:30.9]} 29. Rg1 {[%clk
0:00:07.9]} 29... Rxe3 {[%clk 0:00:29.4]} 30. Kf2 {[%clk 0:00:06.9]} 30... Rxd3
{[%clk 0:00:29.2]} 31. Be6 {[%clk 0:00:06.4]} 31... Rf8+ {[%clk 0:00:24.2]} 32.
Kg2 {[%clk 0:00:05.7]} 32... Rd2+ {[%clk 0:00:23.8]} 33. Kh1 {[%clk 0:00:02.2]}
33... Rh8# {[%clk 0:00:22.8]} 0-1

[Event "Late-Titled-Tuesday-Blitz-February-06-2024"]
[Site "Chess.com"]
[Date "2024.02.06"]
[Round "11"]
[White "LionTheLeon_06"]
[Black "manitodeplomo"]
[Result "1-0"]
[WhiteElo "2890"]
[BlackElo "2648"]
[TimeControl "180+1"]
[EndTime "16:04:35 PST"]
[Termination "LionTheLeon_06 won on time"]

1. c4 {[%clk 0:02:55.6]} 1... g6 {[%clk 0:02:59]} 2. Nf3 {[%clk 0:02:56]} 2...
Bg7 {[%clk 0:02:59.9]} 3. e3 {[%clk 0:02:56.5]} 3... c5 {[%clk 0:02:59.1]} 4.
Nc3 {[%clk 0:02:55.7]} 4... Nf6 {[%clk 0:02:59.2]} 5. d4 {[%clk 0:02:55.9]} 5...
O-O {[%clk 0:02:59.6]} 6. d5 {[%clk 0:02:55.9]} 6... d6 {[%clk 0:02:59.3]} 7.
Be2 {[%clk 0:02:56]} 7... e6 {[%clk 0:02:59.9]} 8. O-O {[%clk 0:02:56.2]} 8...
exd5 {[%clk 0:03:00.5]} 9. cxd5 {[%clk 0:02:57.1]} 9... a6 {[%clk 0:03:00.7]}
10. a4 {[%clk 0:02:57.1]} 10... Re8 {[%clk 0:03:00.3]} 11. Nd2 {[%clk
0:02:56.3]} 11... Nbd7 {[%clk 0:03:00.3]} 12. Nc4 {[%clk 0:02:54.7]} 12... Nb6
{[%clk 0:02:54.1]} 13. Na3 {[%clk 0:02:53.5]} 13... Bd7 {[%clk 0:02:54]} 14. h3
{[%clk 0:02:38.2]} 14... Rb8 {[%clk 0:02:37]} 15. Re1 {[%clk 0:02:33.8]} 15...
Na8 {[%clk 0:02:35.3]} 16. Bf1 {[%clk 0:02:29.2]} 16... Ne4 {[%clk 0:02:29.4]}
17. Nxe4 {[%clk 0:02:26.3]} 17... Rxe4 {[%clk 0:02:30.3]} 18. Nc4 {[%clk
0:02:25.7]} 18... Qc7 {[%clk 0:02:21.2]} 19. a5 {[%clk 0:02:21.6]} 19... Bb5
{[%clk 0:02:19.3]} 20. Qc2 {[%clk 0:02:19.5]} 20... Ree8 {[%clk 0:02:14.8]} 21.
Ra2 {[%clk 0:02:17.8]} 21... Bxc4 {[%clk 0:02:09.4]} 22. Bxc4 {[%clk 0:02:17.2]}
22... b5 {[%clk 0:01:54.7]} 23. axb6 {[%clk 0:02:17.4]} 23... Nxb6 {[%clk
0:01:55]} 24. b3 {[%clk 0:02:12]} 24... Nxc4 {[%clk 0:01:43.3]} 25. bxc4 {[%clk
0:02:12.9]} 25... a5 {[%clk 0:01:31.8]} 26. Bd2 {[%clk 0:02:12.2]} 26... Rb4
{[%clk 0:01:16]} 27. Bxb4 {[%clk 0:01:50.7]} 27... cxb4 {[%clk 0:01:16.9]} 28.
Qb3 {[%clk 0:01:48.8]} 28... Rc8 {[%clk 0:01:08.5]} 29. Rc1 {[%clk 0:01:48.6]}
29... Bc3 {[%clk 0:01:07.6]} 30. Rxc3 {[%clk 0:01:48.1]} 30... bxc3 {[%clk
0:01:07.5]} 31. Qxc3 {[%clk 0:01:48.4]} 31... Qxc4 {[%clk 0:01:03]} 32. Qxa5
{[%clk 0:01:40.9]} 32... Kg7 {[%clk 0:00:40.7]} 33. Rd2 {[%clk 0:01:32.8]} 33...
Qc1+ {[%clk 0:00:29.9]} 34. Kh2 {[%clk 0:01:32.3]} 34... Rc5 {[%clk 0:00:29.8]}
35. Qa2 {[%clk 0:01:25.6]} 35... Qc3 {[%clk 0:00:29.4]} 36. Rd1 {[%clk
0:01:11.6]} 36... h5 {[%clk 0:00:24.3]} 37. h4 {[%clk 0:01:03.1]} 37... Qe5+
{[%clk 0:00:18.1]} 38. g3 {[%clk 0:01:02.6]} 38... Qf5 {[%clk 0:00:16.7]} 39.
Rd2 {[%clk 0:00:54.9]} 39... Qe4 {[%clk 0:00:12]} 40. Qb2+ {[%clk 0:00:50.3]}
40... Kh7 {[%clk 0:00:10.1]} 41. Rd4 {[%clk 0:00:50.5]} 41... Qe5 {[%clk
0:00:04.8]} 42. Qd2 {[%clk 0:00:50.6]} 42... Kg7 {[%clk 0:00:03.9]} 43. Kg2
{[%clk 0:00:51.1]} 43... Rb5 {[%clk 0:00:03.1]} 44. Qd1 {[%clk 0:00:51.2]} 44...
Rc5 {[%clk 0:00:02.3]} 45. Qb3 {[%clk 0:00:51]} 1-0

[Event "Late-Titled-Tuesday-Blitz-February-06-2024"]
[Site "Chess.com"]
[Date "2024.02.06"]
[Round "11"]
[White "Msb2"]
[Black "dedpihto_v_kozhanom_palto"]
[Result "1-0"]
[WhiteElo "2977"]
[BlackElo "2705"]
[TimeControl "180+1"]
[EndTime "16:04:35 PST"]
[Termination "Msb2 won on time"]

1. d4 {[%clk 0:03:00.9]} 1... g6 {[%clk 0:02:54.7]} 2. c4 {[%clk 0:03:01.4]}
2... Bg7 {[%clk 0:02:53]} 3. e4 {[%clk 0:03:02.1]} 3... d6 {[%clk 0:02:53.5]} 4.
Nc3 {[%clk 0:03:02.7]} 4... Nc6 {[%clk 0:02:54.1]} 5. d5 {[%clk 0:03:02.9]} 5...
Nd4 {[%clk 0:02:53.7]} 6. Be3 {[%clk 0:03:03.6]} 6... c5 {[%clk 0:02:54.3]} 7.
Nge2 {[%clk 0:03:04.3]} 7... Qb6 {[%clk 0:02:54.8]} 8. Na4 {[%clk 0:03:00.4]}
8... Qa5+ {[%clk 0:02:53.3]} 9. Bd2 {[%clk 0:03:00.9]} 9... Qc7 {[%clk
0:02:53.5]} 10. Bc3 {[%clk 0:02:59]} 10... e5 {[%clk 0:02:48.4]} 11. dxe6 {[%clk
0:02:59.9]} 11... Bxe6 {[%clk 0:02:47.7]} 12. Nxd4 {[%clk 0:02:58.2]} 12... cxd4
{[%clk 0:02:48.6]} 13. Bxd4 {[%clk 0:02:59.1]} 13... Nf6 {[%clk 0:02:40.9]} 14.
Nc3 {[%clk 0:02:55.5]} 14... O-O {[%clk 0:02:39]} 15. b3 {[%clk 0:02:46.1]}
15... d5 {[%clk 0:02:13.8]} 16. cxd5 {[%clk 0:02:23.2]} 16... Bg4 {[%clk
0:02:07.4]} 17. f3 {[%clk 0:02:17.6]} 17... Rfe8 {[%clk 0:01:56.3]} 18. Be2
{[%clk 0:02:15.1]} 18... Nxe4 {[%clk 0:01:27.8]} 19. Nxe4 {[%clk 0:02:08.1]}
19... Rxe4 {[%clk 0:01:23.3]} 20. fxe4 {[%clk 0:02:07.1]} 20... Bxe2 {[%clk
0:01:23.9]} 21. Kxe2 {[%clk 0:02:07.3]} 21... Re8 {[%clk 0:01:23.1]} 22. Kf3
{[%clk 0:01:43.5]} 22... f5 {[%clk 0:00:53.3]} 23. e5 {[%clk 0:01:39.1]} 23...
Qd8 {[%clk 0:00:34.4]} 24. Re1 {[%clk 0:01:26.6]} 24... Qh4 {[%clk 0:00:27]} 25.
h3 {[%clk 0:01:15.2]} 25... f4 {[%clk 0:00:20.3]} 26. Ke2 {[%clk 0:01:07.4]}
26... f3+ {[%clk 0:00:17.8]} 27. gxf3 {[%clk 0:00:57.7]} 27... Bxe5 {[%clk
0:00:15.3]} 28. Bf2 {[%clk 0:00:26.7]} 28... Qxh3 {[%clk 0:00:05.1]} 29. Kd2
{[%clk 0:00:20.6]} 29... Bf4+ {[%clk 0:00:05.3]} 30. Kc2 {[%clk 0:00:19]} 30...
Rc8+ {[%clk 0:00:03.5]} 31. Kb2 {[%clk 0:00:18.9]} 31... Qg2 {[%clk 0:00:02.2]}
32. Qe2 {[%clk 0:00:17]} 1-0

[Event "Late-Titled-Tuesday-Blitz-February-06-2024"]
[Site "Chess.com"]
[Date "2024.02.06"]
[Round "11"]
[White "Nouali_Mohamed"]
[Black "EsmeraldasAnderson03"]
[Result "1/2-1/2"]
[WhiteElo "2562"]
[BlackElo "2405"]
[TimeControl "180+1"]
[EndTime "16:04:35 PST"]
[Termination "Game drawn by repetition"]

1. e4 {[%clk 0:03:00.2]} 1... c5 {[%clk 0:02:59.1]} 2. Nf3 {[%clk 0:03:00.2]}
2... d6 {[%clk 0:02:59.8]} 3. d4 {[%clk 0:03:00.4]} 3... cxd4 {[%clk 0:03:00.7]}
4. Nxd4 {[%clk 0:03:01.3]} 4... Nf6 {[%clk 0:03:01.5]} 5. Nc3 {[%clk 0:03:01.5]}
5... a6 {[%clk 0:03:02.2]} 6. Bc4 {[%clk 0:03:01.9]} 6... e6 {[%clk 0:03:01.8]}
7. Bb3 {[%clk 0:03:02.3]} 7... Qc7 {[%clk 0:03:02.5]} 8. Bg5 {[%clk 0:03:00.8]}
8... b5 {[%clk 0:03:02.6]} 9. Bxf6 {[%clk 0:03:00.7]} 9... gxf6 {[%clk
0:03:03.5]} 10. Qh5 {[%clk 0:03:00.4]} 10... Ke7 {[%clk 0:02:58.2]} 11. O-O-O
{[%clk 0:02:50.2]} 11... b4 {[%clk 0:02:46.8]} 12. Nd5+ {[%clk 0:02:41.1]} 12...
exd5 {[%clk 0:02:40.6]} 13. Bxd5 {[%clk 0:02:42]} 13... Ra7 {[%clk 0:02:27.3]}
14. Qxf7+ {[%clk 0:02:34]} 14... Kd8 {[%clk 0:02:27.8]} 15. Qxf6+ {[%clk
0:02:34.4]} 15... Qe7 {[%clk 0:02:26.9]} 16. Qxh8 {[%clk 0:02:32.2]} 16... Qe8
{[%clk 0:02:07.3]} 17. Kb1 {[%clk 0:02:25.3]} 17... Bg7 {[%clk 0:02:03]} 18.
Qxe8+ {[%clk 0:02:24.2]} 18... Kxe8 {[%clk 0:02:02.7]} 19. Nf5 {[%clk 0:02:21]}
19... Bf8 {[%clk 0:02:02]} 20. Rhe1 {[%clk 0:02:00.1]} 20... Nd7 {[%clk
0:01:45.5]} 21. Be6 {[%clk 0:01:53.6]} 21... Rc7 {[%clk 0:01:31.3]} 22. Nxd6+
{[%clk 0:01:49.1]} 22... Bxd6 {[%clk 0:01:32.2]} 23. Rxd6 {[%clk 0:01:47.3]}
23... Ke7 {[%clk 0:01:32.6]} 24. Rxd7+ {[%clk 0:01:40.1]} 24... Bxd7 {[%clk
0:01:32.1]} 25. Bxd7 {[%clk 0:01:41]} 25... Rxd7 {[%clk 0:01:31.8]} 26. Kc1
{[%clk 0:01:40.3]} 26... Ke6 {[%clk 0:01:32]} 27. f4 {[%clk 0:01:38]} 27... Rg7
{[%clk 0:01:29.9]} 28. g3 {[%clk 0:01:38.2]} 28... h5 {[%clk 0:01:30.5]} 29. b3
{[%clk 0:01:32]} 29... h4 {[%clk 0:01:30.8]} 30. Re3 {[%clk 0:01:32]} 30... h3
{[%clk 0:01:30.2]} 31. Rd3 {[%clk 0:01:29.6]} 31... a5 {[%clk 0:01:29.8]} 32. e5
{[%clk 0:01:27.9]} 32... Kf5 {[%clk 0:01:29.2]} 33. Rd6 {[%clk 0:01:25.4]} 33...
Kg4 {[%clk 0:01:28]} 34. Rh6 {[%clk 0:01:24.6]} 34... Rd7 {[%clk 0:01:20.2]} 35.
Rh4+ {[%clk 0:01:23.4]} 35... Kf3 {[%clk 0:01:20.8]} 36. Rxh3 {[%clk 0:01:24]}
36... Ke2 {[%clk 0:01:21.4]} 37. g4 {[%clk 0:01:21]} 37... Rd4 {[%clk
0:01:05.7]} 38. f5 {[%clk 0:01:09.7]} 38... Rxg4 {[%clk 0:01:05.2]} 39. e6
{[%clk 0:01:09.8]} 39... Re4 {[%clk 0:01:04.6]} 40. Kb2 {[%clk 0:01:05.7]} 40...
Re5 {[%clk 0:01:02.9]} 41. Rh5 {[%clk 0:01:05.7]} 41... Kd2 {[%clk 0:01:02.8]}
42. f6 {[%clk 0:00:58.6]} 42... Rxh5 {[%clk 0:01:02.2]} 43. e7 {[%clk
0:00:07.3]} 43... Rc5 {[%clk 0:00:56.5]} 44. e8=Q {[%clk 0:00:04.8]} 44... Rxc2+
{[%clk 0:00:57]} 45. Kb1 {[%clk 0:00:05.4]} 45... Rc1+ {[%clk 0:00:56]} 46. Kb2
{[%clk 0:00:05.9]} 46... Rc2+ {[%clk 0:00:56.6]} 47. Kb1 {[%clk 0:00:06.4]}
47... Rc1+ {[%clk 0:00:56]} 48. Kb2 {[%clk 0:00:06.8]} 48... Rc2+ {[%clk
0:00:56.6]} 1/2-1/2

[Event "Late-Titled-Tuesday-Blitz-February-06-2024"]
[Site "Chess.com"]
[Date "2024.02.06"]
[Round "11"]
[White "shirovin"]
[Black "martinez_95"]
[Result "1-0"]
[WhiteElo "2110"]
[BlackElo "2212"]
[TimeControl "180+1"]
[EndTime "16:04:38 PST"]
[Termination "shirovin won by checkmate"]

1. e4 {[%clk 0:03:00.9]} 1... Nf6 {[%clk 0:02:39.6]} 2. e5 {[%clk 0:02:59]} 2...
Nd5 {[%clk 0:02:39.6]} 3. d4 {[%clk 0:02:59.5]} 3... d6 {[%clk 0:02:39.8]} 4.
Nf3 {[%clk 0:02:59.3]} 4... Nc6 {[%clk 0:02:38.9]} 5. e6 {[%clk 0:02:51.8]} 5...
fxe6 {[%clk 0:02:29.5]} 6. c4 {[%clk 0:02:50.5]} 6... Nf6 {[%clk 0:02:27.2]} 7.
Nc3 {[%clk 0:02:51]} 7... g6 {[%clk 0:02:24.6]} 8. h4 {[%clk 0:02:50.3]} 8...
Bg7 {[%clk 0:02:24.6]} 9. Bg5 {[%clk 0:02:40.9]} 9... O-O {[%clk 0:02:22.6]} 10.
Qd2 {[%clk 0:02:35.3]} 10... e5 {[%clk 0:02:14.7]} 11. d5 {[%clk 0:02:24.7]}
11... e4 {[%clk 0:02:02.1]} 12. dxc6 {[%clk 0:02:13.2]} 12... exf3 {[%clk
0:02:00.7]} 13. gxf3 {[%clk 0:01:41.2]} 13... bxc6 {[%clk 0:01:55.8]} 14. Bh6
{[%clk 0:01:40.6]} 14... Bf5 {[%clk 0:01:37.9]} 15. Bxg7 {[%clk 0:01:39]} 15...
Kxg7 {[%clk 0:01:38]} 16. O-O-O {[%clk 0:01:29.1]} 16... e5 {[%clk 0:01:21.1]}
17. Bd3 {[%clk 0:01:05.5]} 17... Nh5 {[%clk 0:01:19.7]} 18. Ne2 {[%clk
0:00:54.8]} 18... Rb8 {[%clk 0:01:04.1]} 19. Bxf5 {[%clk 0:00:45.4]} 19... Rxf5
{[%clk 0:01:05]} 20. Ng3 {[%clk 0:00:44.8]} 20... Nxg3 {[%clk 0:00:58.3]} 21.
fxg3 {[%clk 0:00:43.9]} 21... Rxf3 {[%clk 0:00:57.9]} 22. h5 {[%clk 0:00:31.5]}
22... Qf6 {[%clk 0:00:55.2]} 23. Rde1 {[%clk 0:00:19.5]} 23... Rf2 {[%clk
0:00:27.6]} 24. Re2 {[%clk 0:00:18.4]} 24... Qf3 {[%clk 0:00:19.3]} 25. h6+
{[%clk 0:00:08.9]} 25... Kg8 {[%clk 0:00:16.3]} 26. Rhe1 {[%clk 0:00:09.4]}
26... Rxe2 {[%clk 0:00:13.3]} 27. Rxe2 {[%clk 0:00:09.1]} 27... Qf1+ {[%clk
0:00:11.1]} 28. Kc2 {[%clk 0:00:08.7]} 28... Qf5+ {[%clk 0:00:10.3]} 29. Kc3
{[%clk 0:00:07.4]} 29... e4 {[%clk 0:00:09.8]} 30. Qd4 {[%clk 0:00:06.4]} 30...
Re8 {[%clk 0:00:05.5]} 31. Qg7# {[%clk 0:00:05.5]} 1-0

[Event "Late-Titled-Tuesday-Blitz-February-06-2024"]
[Site "Chess.com"]
[Date "2024.02.06"]
[Round "11"]
[White "rasmussvane"]
[Black "mr_gustavo"]
[Result "1-0"]
[WhiteElo "2963"]
[BlackElo "2724"]
[TimeControl "180+1"]
[EndTime "16:04:40 PST"]
[Termination "rasmussvane won on time"]

1. Nf3 {[%clk 0:03:00.3]} 1... d5 {[%clk 0:02:59.2]} 2. g3 {[%clk 0:03:00.4]}
2... Nf6 {[%clk 0:02:59.1]} 3. Bg2 {[%clk 0:03:00]} 3... e6 {[%clk 0:02:59.8]}
4. O-O {[%clk 0:03:00]} 4... Be7 {[%clk 0:03:00.4]} 5. c4 {[%clk 0:02:57]} 5...
O-O {[%clk 0:03:00.6]} 6. b3 {[%clk 0:02:57.1]} 6... d4 {[%clk 0:03:01]} 7. e3
{[%clk 0:02:49.5]} 7... c5 {[%clk 0:03:01.5]} 8. Ne5 {[%clk 0:02:49.7]} 8... Qc7
{[%clk 0:02:55.1]} 9. f4 {[%clk 0:02:41.7]} 9... Nbd7 {[%clk 0:02:48.6]} 10. Nd3
{[%clk 0:02:36.3]} 10... e5 {[%clk 0:02:48.8]} 11. g4 {[%clk 0:02:34]} 11... h6
{[%clk 0:02:20.1]} 12. Bb2 {[%clk 0:02:13.4]} 12... exf4 {[%clk 0:02:11.8]} 13.
exd4 {[%clk 0:02:03.3]} 13... cxd4 {[%clk 0:02:07.5]} 14. Bxd4 {[%clk
0:01:39.3]} 14... Nc5 {[%clk 0:02:07.1]} 15. Nxf4 {[%clk 0:01:27.1]} 15... Bxg4
{[%clk 0:02:05.2]} 16. Qe1 {[%clk 0:01:27.5]} 16... Rad8 {[%clk 0:02:01.3]} 17.
Be5 {[%clk 0:01:25.1]} 17... Qb6 {[%clk 0:01:48.4]} 18. Kh1 {[%clk 0:01:17.2]}
18... Rfe8 {[%clk 0:00:59.1]} 19. Qg3 {[%clk 0:01:14]} 19... Ncd7 {[%clk
0:00:46.9]} 20. d4 {[%clk 0:01:01.2]} 20... Nxe5 {[%clk 0:00:31.8]} 21. dxe5
{[%clk 0:01:01.5]} 21... Nh7 {[%clk 0:00:10.5]} 22. Qxg4 {[%clk 0:00:56.8]}
22... Qd4 {[%clk 0:00:10.1]} 23. e6 {[%clk 0:00:36.5]} 23... f5 {[%clk 0:00:10]}
24. Qg6 {[%clk 0:00:29.3]} 24... Rf8 {[%clk 0:00:09]} 25. Nc3 {[%clk 0:00:21.3]}
25... Qxc3 {[%clk 0:00:08.4]} 26. Nd5 {[%clk 0:00:21.9]} 26... Rxd5 {[%clk
0:00:04.9]} 27. Bxd5 {[%clk 0:00:22.4]} 27... f4 {[%clk 0:00:02.8]} 28. Rac1
{[%clk 0:00:18.5]} 28... Qd4 {[%clk 0:00:02.3]} 29. Rcd1 {[%clk 0:00:18.2]}
29... Qc3 {[%clk 0:00:02.6]} 30. Be4 {[%clk 0:00:12.6]} 30... Ng5 {[%clk
0:00:02.4]} 31. Rd7 {[%clk 0:00:09.9]} 1-0

[Event "Late-Titled-Tuesday-Blitz-February-06-2024"]
[Site "Chess.com"]
[Date "2024.02.06"]
[Round "11"]
[White "Ducke13"]
[Black "ATM622"]
[Result "1-0"]
[WhiteElo "2329"]
[BlackElo "2432"]
[TimeControl "180+1"]
[EndTime "16:04:40 PST"]
[Termination "Ducke13 won by resignation"]

1. d4 {[%clk 0:02:46.9]} 1... Nf6 {[%clk 0:02:59.5]} 2. g3 {[%clk 0:02:47.1]}
2... e6 {[%clk 0:02:59.6]} 3. Bg2 {[%clk 0:02:46.8]} 3... d5 {[%clk 0:03:00.1]}
4. Nf3 {[%clk 0:02:47.4]} 4... Be7 {[%clk 0:02:59.5]} 5. O-O {[%clk 0:02:48]}
5... O-O {[%clk 0:03:00]} 6. c4 {[%clk 0:02:48.5]} 6... dxc4 {[%clk 0:02:58.8]}
7. Na3 {[%clk 0:02:49.1]} 7... c5 {[%clk 0:02:58.9]} 8. Nxc4 {[%clk 0:02:48.1]}
8... Nc6 {[%clk 0:02:56.8]} 9. dxc5 {[%clk 0:02:46.6]} 9... Bxc5 {[%clk
0:02:57.5]} 10. a3 {[%clk 0:02:44.1]} 10... a5 {[%clk 0:02:39]} 11. Bg5 {[%clk
0:02:42]} 11... Be7 {[%clk 0:02:34.6]} 12. Qc2 {[%clk 0:02:34.5]} 12... h6
{[%clk 0:02:23.6]} 13. Bf4 {[%clk 0:02:32.2]} 13... Nd5 {[%clk 0:02:22.3]} 14.
Bd2 {[%clk 0:02:31]} 14... b5 {[%clk 0:02:16.6]} 15. Nce5 {[%clk 0:02:23.9]}
15... Nxe5 {[%clk 0:02:10.3]} 16. Nxe5 {[%clk 0:02:24.8]} 16... Bb7 {[%clk
0:02:10]} 17. Rac1 {[%clk 0:02:15.3]} 17... Rc8 {[%clk 0:02:06.3]} 18. Qd3
{[%clk 0:02:08.8]} 18... Qd6 {[%clk 0:01:25.8]} 19. Nf3 {[%clk 0:01:53.4]} 19...
b4 {[%clk 0:01:05.7]} 20. e4 {[%clk 0:01:32.9]} 20... Nb6 {[%clk 0:01:04.1]} 21.
Qe2 {[%clk 0:00:57.4]} 21... bxa3 {[%clk 0:00:57.6]} 22. bxa3 {[%clk 0:00:57.5]}
22... Qxa3 {[%clk 0:00:43.9]} 23. Rb1 {[%clk 0:00:57.5]} 23... Bb4 {[%clk
0:00:30]} 24. Bxb4 {[%clk 0:00:55.5]} 24... axb4 {[%clk 0:00:29.3]} 25. Qb5
{[%clk 0:00:56.2]} 25... Qa6 {[%clk 0:00:16.9]} 26. Qxb4 {[%clk 0:00:52.7]}
26... Rc6 {[%clk 0:00:03.6]} 27. Nd4 {[%clk 0:00:52.8]} 27... Rc4 {[%clk
0:00:03.3]} 28. Qxb6 {[%clk 0:00:52.6]} 28... Qxb6 {[%clk 0:00:02.3]} 29. Rxb6
{[%clk 0:00:53.5]} 29... Ba8 {[%clk 0:00:02.3]} 30. Nb5 {[%clk 0:00:46.6]} 30...
Bxe4 {[%clk 0:00:02.4]} 31. Nd6 {[%clk 0:00:45.6]} 31... Rd4 {[%clk 0:00:01.9]}
32. Nxe4 {[%clk 0:00:44.8]} 32... f5 {[%clk 0:00:02.2]} 33. Nc5 {[%clk
0:00:43.4]} 33... e5 {[%clk 0:00:02.6]} 34. Ne6 {[%clk 0:00:43.7]} 34... Rf6
{[%clk 0:00:02.7]} 35. Rb8+ {[%clk 0:00:41.7]} 35... Kh7 {[%clk 0:00:03.1]} 36.
Nxd4 {[%clk 0:00:40.7]} 36... exd4 {[%clk 0:00:04]} 37. Rd1 {[%clk 0:00:40.9]}
37... Rd6 {[%clk 0:00:03.9]} 38. Rb4 {[%clk 0:00:39.8]} 38... d3 {[%clk
0:00:03.9]} 39. Rb3 {[%clk 0:00:40.4]} 39... d2 {[%clk 0:00:04.3]} 40. Rb2
{[%clk 0:00:41.1]} 40... Re6 {[%clk 0:00:04.9]} 41. Rbxd2 {[%clk 0:00:41.3]}
41... g5 {[%clk 0:00:04.1]} 42. Rd6 {[%clk 0:00:40.9]} 42... Re7 {[%clk
0:00:03.3]} 43. Rd7 {[%clk 0:00:41.1]} 1-0